[Event "Late-Titled-Tuesday-Blitz-March-12-2024"]
[Site "Chess.com"]
[Date "2024.03.12"]
[Round "4"]
[White "Mikayel99"]
[Black "aa175"]
[Result "0-1"]
[WhiteElo "2561"]
[BlackElo "2732"]
[TimeControl "180+1"]
[EndTime "14:36:59 PDT"]
[Termination "aa175 won on time"]

1. e4 {[%clk 0:02:56.5]} 1... c5 {[%clk 0:02:58.7]} 2. Nf3 {[%clk 0:02:55.9]}
2... a6 {[%clk 0:02:56.2]} 3. c3 {[%clk 0:02:53]} 3... Nf6 {[%clk 0:02:54.2]} 4.
e5 {[%clk 0:02:53]} 4... Nd5 {[%clk 0:02:54.8]} 5. d4 {[%clk 0:02:53.7]} 5... d6
{[%clk 0:02:52.4]} 6. Bc4 {[%clk 0:02:50.1]} 6... e6 {[%clk 0:02:50.4]} 7. O-O
{[%clk 0:02:47.8]} 7... b5 {[%clk 0:02:50.2]} 8. Bxd5 {[%clk 0:02:47]} 8... exd5
{[%clk 0:02:51.1]} 9. exd6 {[%clk 0:02:46.5]} 9... c4 {[%clk 0:02:40.5]} 10.
Re1+ {[%clk 0:02:42.2]} 10... Be6 {[%clk 0:02:39.9]} 11. Ng5 {[%clk 0:02:41.5]}
11... Qf6 {[%clk 0:02:31.4]} 12. Nxe6 {[%clk 0:02:33.2]} 12... fxe6 {[%clk
0:02:30.7]} 13. Qg4 {[%clk 0:02:22.2]} 13... Kd7 {[%clk 0:02:30.3]} 14. Nd2
{[%clk 0:02:08.9]} 14... Bxd6 {[%clk 0:02:29.1]} 15. Nf3 {[%clk 0:02:08.5]}
15... Nc6 {[%clk 0:02:28.4]} 16. Bg5 {[%clk 0:02:08.1]} 16... Qf5 {[%clk
0:02:27.2]} 17. Qxf5 {[%clk 0:01:25.2]} 17... exf5 {[%clk 0:02:28.1]} 18. Ne5+
{[%clk 0:01:22.3]} 18... Bxe5 {[%clk 0:02:26]} 19. dxe5 {[%clk 0:01:22.6]} 19...
Ke6 {[%clk 0:02:26.6]} 20. Be3 {[%clk 0:01:19]} 20... h6 {[%clk 0:02:24.1]} 21.
f4 {[%clk 0:01:18.8]} 21... Rhg8 {[%clk 0:02:21.6]} 22. h4 {[%clk 0:01:16.3]}
22... h5 {[%clk 0:02:20.7]} 23. Rad1 {[%clk 0:01:13.4]} 23... Rh8 {[%clk
0:02:21]} 24. Bc5 {[%clk 0:01:06.3]} 24... Na5 {[%clk 0:01:48.4]} 25. Re2 {[%clk
0:01:02.3]} 25... Nb7 {[%clk 0:01:44.2]} 26. Bb6 {[%clk 0:00:51]} 26... Rac8
{[%clk 0:01:41.1]} 27. Red2 {[%clk 0:00:50.1]} 27... Rc6 {[%clk 0:01:41.6]} 28.
Be3 {[%clk 0:00:36.8]} 28... Rd8 {[%clk 0:01:41.8]} 29. a4 {[%clk 0:00:36.6]}
29... Na5 {[%clk 0:01:30.3]} 30. axb5 {[%clk 0:00:34.7]} 30... axb5 {[%clk
0:01:30.2]} 31. Rf2 {[%clk 0:00:33.1]} 31... Nb3 {[%clk 0:01:29.8]} 32. Rf3
{[%clk 0:00:33.3]} 32... g6 {[%clk 0:01:25.2]} 33. Rg3 {[%clk 0:00:33.3]} 33...
Rg8 {[%clk 0:01:23.8]} 34. Re1 {[%clk 0:00:25.6]} 34... Ra6 {[%clk 0:01:22.7]}
35. Re2 {[%clk 0:00:26]} 35... Ra1+ {[%clk 0:01:22.7]} 36. Kh2 {[%clk 0:00:25]}
36... Rb1 {[%clk 0:01:22.1]} 37. Rf3 {[%clk 0:00:25.1]} 37... Ra8 {[%clk
0:01:21.1]} 38. Rg3 {[%clk 0:00:25.4]} 38... Rg8 {[%clk 0:01:21.2]} 39. Rf3
{[%clk 0:00:25.8]} 39... Rd1 {[%clk 0:01:17.5]} 40. Rg3 {[%clk 0:00:17]} 40...
Rf1 {[%clk 0:01:11.5]} 41. Rc2 {[%clk 0:00:08.6]} 41... Rg7 {[%clk 0:01:09.1]}
42. Bb6 {[%clk 0:00:06.6]} 42... Rxf4 {[%clk 0:01:07.5]} 43. Re2 {[%clk
0:00:05]} 43... Rxh4+ {[%clk 0:01:07]} 0-1

[Event "Late-Titled-Tuesday-Blitz-March-12-2024"]
[Site "Chess.com"]
[Date "2024.03.12"]
[Round "4"]
[White "The_Straightforward_Rook"]
[Black "scarabee43"]
[Result "0-1"]
[WhiteElo "2454"]
[BlackElo "2838"]
[TimeControl "180+1"]
[EndTime "14:37:08 PDT"]
[Termination "scarabee43 won by resignation"]

1. c4 {[%clk 0:01:18.4]} 1... Nf6 {[%clk 0:02:55.4]} 2. Nc3 {[%clk 0:01:16.5]}
2... e6 {[%clk 0:02:55.7]} 3. e4 {[%clk 0:01:16.3]} 3... d6 {[%clk 0:02:56.1]}
4. d4 {[%clk 0:01:15.3]} 4... g6 {[%clk 0:02:56.2]} 5. Be2 {[%clk 0:01:15]} 5...
Bg7 {[%clk 0:02:56.7]} 6. h4 {[%clk 0:01:15.6]} 6... c5 {[%clk 0:02:52.3]} 7. d5
{[%clk 0:01:13.9]} 7... exd5 {[%clk 0:02:51.1]} 8. exd5 {[%clk 0:01:14.8]} 8...
h5 {[%clk 0:02:49.5]} 9. Nf3 {[%clk 0:01:13.4]} 9... O-O {[%clk 0:02:49.6]} 10.
O-O {[%clk 0:01:12.8]} 10... Bg4 {[%clk 0:02:50.1]} 11. Bf4 {[%clk 0:01:12.3]}
11... Re8 {[%clk 0:02:47.4]} 12. Re1 {[%clk 0:01:11.5]} 12... Ne4 {[%clk
0:02:43.3]} 13. Nxe4 {[%clk 0:01:01.5]} 13... Rxe4 {[%clk 0:02:43.4]} 14. Bg5
{[%clk 0:01:02.2]} 14... Qe8 {[%clk 0:02:40.7]} 15. Bd3 {[%clk 0:00:56.4]} 15...
Bxf3 {[%clk 0:02:29.4]} 16. gxf3 {[%clk 0:00:49.8]} 16... Rxe1+ {[%clk
0:02:29.7]} 17. Qxe1 {[%clk 0:00:49.8]} 17... Nd7 {[%clk 0:02:30.4]} 18. Qxe8+
{[%clk 0:00:42.1]} 18... Rxe8 {[%clk 0:02:30.6]} 19. Rb1 {[%clk 0:00:42.8]}
19... a5 {[%clk 0:02:22.4]} 20. Kf1 {[%clk 0:00:40.6]} 20... Bd4 {[%clk
0:02:16.7]} 21. b3 {[%clk 0:00:40]} 21... Kg7 {[%clk 0:02:15.2]} 22. Re1 {[%clk
0:00:35.1]} 22... Rxe1+ {[%clk 0:02:08.6]} 23. Kxe1 {[%clk 0:00:36]} 23... Bf6
{[%clk 0:02:00.7]} 24. f4 {[%clk 0:00:23.9]} 24... Bc3+ {[%clk 0:02:00.6]} 25.
Ke2 {[%clk 0:00:19.8]} 25... f6 {[%clk 0:02:00.7]} 26. f5 {[%clk 0:00:20.5]}
26... fxg5 {[%clk 0:01:59]} 27. hxg5 {[%clk 0:00:21.4]} 27... gxf5 {[%clk
0:01:58.8]} 28. Bxf5 {[%clk 0:00:22.3]} 28... Nf8 {[%clk 0:01:55.3]} 29. Bc8
{[%clk 0:00:19.8]} 29... b6 {[%clk 0:01:53.5]} 30. f4 {[%clk 0:00:20.7]} 30...
Bb2 {[%clk 0:01:51.3]} 31. f5 {[%clk 0:00:20.7]} 31... Bc1 {[%clk 0:01:51.4]}
32. g6 {[%clk 0:00:13.3]} 32... Bb2 {[%clk 0:01:49.5]} 33. Kf3 {[%clk
0:00:14.2]} 33... Bf6 {[%clk 0:01:49.7]} 34. Kg3 {[%clk 0:00:12.7]} 34... Kh6
{[%clk 0:01:49.8]} 35. Kh3 {[%clk 0:00:13.3]} 35... Kg5 {[%clk 0:01:49.5]} 36.
Kg3 {[%clk 0:00:13.9]} 36... Be5+ {[%clk 0:01:48.5]} 37. Kh3 {[%clk 0:00:14.1]}
37... Bc3 {[%clk 0:01:36.3]} 38. Kg3 {[%clk 0:00:13.7]} 38... Be1+ {[%clk
0:01:34.1]} 39. Kh3 {[%clk 0:00:13.8]} 39... Kf6 {[%clk 0:01:34.9]} 40. Kg2
{[%clk 0:00:12.9]} 40... Bc3 {[%clk 0:01:31.7]} 41. Kh3 {[%clk 0:00:13.3]} 41...
Ke7 {[%clk 0:01:08.4]} 42. Kg2 {[%clk 0:00:13.8]} 42... Nd7 {[%clk 0:01:08.5]}
43. Bxd7 {[%clk 0:00:10.5]} 43... Kxd7 {[%clk 0:01:09]} 44. Kh3 {[%clk
0:00:11.4]} 44... Bf6 {[%clk 0:01:08.6]} 45. Kg3 {[%clk 0:00:11.5]} 45... Ke7
{[%clk 0:01:09.1]} 46. Kf4 {[%clk 0:00:12.1]} 46... Kf8 {[%clk 0:01:09.6]} 47.
Kg3 {[%clk 0:00:12.9]} 47... Kg7 {[%clk 0:01:10.1]} 48. Kf4 {[%clk 0:00:13.8]}
48... Kh6 {[%clk 0:01:10.6]} 49. Kg3 {[%clk 0:00:14.7]} 49... Kg5 {[%clk
0:01:11.1]} 0-1

[Event "Late-Titled-Tuesday-Blitz-March-12-2024"]
[Site "Chess.com"]
[Date "2024.03.12"]
[Round "4"]
[White "only_strong_moves"]
[Black "ansko1999"]
[Result "1-0"]
[WhiteElo "2555"]
[BlackElo "2694"]
[TimeControl "180+1"]
[EndTime "14:37:09 PDT"]
[Termination "only_strong_moves won on time"]

1. Nc3 {[%clk 0:03:00.9]} 1... c5 {[%clk 0:02:57.4]} 2. Nf3 {[%clk 0:02:59.3]}
2... Nc6 {[%clk 0:02:54]} 3. d4 {[%clk 0:02:59.3]} 3... cxd4 {[%clk 0:02:53.8]}
4. Nxd4 {[%clk 0:03:00.2]} 4... d5 {[%clk 0:02:47.9]} 5. g3 {[%clk 0:02:45.2]}
5... Nf6 {[%clk 0:02:37.9]} 6. Bg2 {[%clk 0:02:42.9]} 6... e5 {[%clk 0:02:29.5]}
7. Nb3 {[%clk 0:02:31.2]} 7... h6 {[%clk 0:02:25.9]} 8. O-O {[%clk 0:02:29.6]}
8... Be7 {[%clk 0:02:22.5]} 9. Nxd5 {[%clk 0:02:29.4]} 9... Nxd5 {[%clk
0:02:17]} 10. Qxd5 {[%clk 0:02:30.3]} 10... Qc7 {[%clk 0:02:15.8]} 11. c3 {[%clk
0:02:27.2]} 11... O-O {[%clk 0:02:16.1]} 12. Be3 {[%clk 0:02:19.3]} 12... Bg4
{[%clk 0:02:07.8]} 13. Rfe1 {[%clk 0:02:15.3]} 13... Kh8 {[%clk 0:01:56.7]} 14.
Bc5 {[%clk 0:02:01]} 14... Rad8 {[%clk 0:01:52.1]} 15. Qe4 {[%clk 0:01:45.8]}
15... f5 {[%clk 0:01:49.8]} 16. Qa4 {[%clk 0:01:45.2]} 16... f4 {[%clk
0:01:37.4]} 17. e3 {[%clk 0:01:38.1]} 17... Bd7 {[%clk 0:01:05.4]} 18. Qa3
{[%clk 0:01:15.6]} 18... Bxc5 {[%clk 0:00:56.8]} 19. Nxc5 {[%clk 0:01:14]} 19...
Bc8 {[%clk 0:00:46.6]} 20. exf4 {[%clk 0:01:08.9]} 20... exf4 {[%clk 0:00:47]}
21. Rad1 {[%clk 0:01:07.1]} 21... Rxd1 {[%clk 0:00:44.8]} 22. Rxd1 {[%clk
0:01:08]} 22... Ne5 {[%clk 0:00:34.5]} 23. Ne6 {[%clk 0:01:05.8]} 23... Bxe6
{[%clk 0:00:12.9]} 24. Qxf8+ {[%clk 0:01:04.6]} 24... Kh7 {[%clk 0:00:13.6]} 25.
Qxf4 {[%clk 0:01:04.7]} 25... Qc5 {[%clk 0:00:09.9]} 26. Be4+ {[%clk 0:01:03.8]}
26... Ng6 {[%clk 0:00:08.9]} 27. Qe3 {[%clk 0:01:01.1]} 27... Qh5 {[%clk
0:00:06.7]} 28. Rd6 {[%clk 0:00:58.1]} 28... Bf5 {[%clk 0:00:05.2]} 29. Bf3
{[%clk 0:00:50.2]} 29... Qh3 {[%clk 0:00:02.6]} 30. Bg2 {[%clk 0:00:43.9]} 30...
Qh5 {[%clk 0:00:02.7]} 31. Rd5 {[%clk 0:00:37.9]} 31... Qg4 {[%clk 0:00:01.5]}
32. h3 {[%clk 0:00:36]} 1-0

[Event "Late-Titled-Tuesday-Blitz-March-12-2024"]
[Site "Chess.com"]
[Date "2024.03.12"]
[Round "4"]
[White "RuleOfTwo"]
[Black "Lennis93"]
[Result "0-1"]
[WhiteElo "2479"]
[BlackElo "2699"]
[TimeControl "180+1"]
[EndTime "14:37:13 PDT"]
[Termination "Lennis93 won by resignation"]

1. Nf3 {[%clk 0:03:00.9]} 1... d5 {[%clk 0:02:52.8]} 2. g3 {[%clk 0:03:00.8]}
2... Nf6 {[%clk 0:02:53.2]} 3. Bg2 {[%clk 0:03:01.5]} 3... Bf5 {[%clk
0:02:53.4]} 4. O-O {[%clk 0:03:02.1]} 4... e6 {[%clk 0:02:54]} 5. c4 {[%clk
0:03:02.3]} 5... c6 {[%clk 0:02:54.6]} 6. b3 {[%clk 0:03:02.1]} 6... h6 {[%clk
0:02:54.2]} 7. Bb2 {[%clk 0:03:02.7]} 7... Nbd7 {[%clk 0:02:54]} 8. d4 {[%clk
0:03:03.2]} 8... a5 {[%clk 0:02:53.5]} 9. Nbd2 {[%clk 0:03:01.7]} 9... Bh7
{[%clk 0:02:51.8]} 10. Re1 {[%clk 0:02:56.9]} 10... a4 {[%clk 0:02:51.1]} 11.
Ne5 {[%clk 0:02:54.2]} 11... Bb4 {[%clk 0:02:48.4]} 12. Nd3 {[%clk 0:02:43.9]}
12... a3 {[%clk 0:02:38.4]} 13. Bc1 {[%clk 0:02:42]} 13... Bc3 {[%clk
0:02:38.2]} 14. Rb1 {[%clk 0:02:42.3]} 14... Bxd4 {[%clk 0:02:36.8]} 15. cxd5
{[%clk 0:02:34.6]} 15... cxd5 {[%clk 0:02:34.1]} 16. Nf3 {[%clk 0:02:32.1]}
16... Bb6 {[%clk 0:01:24.2]} 17. Bf4 {[%clk 0:02:31.4]} 17... Ne4 {[%clk
0:01:17.4]} 18. Rc1 {[%clk 0:02:04.8]} 18... O-O {[%clk 0:01:01.7]} 19. e3
{[%clk 0:01:26.8]} 19... Qf6 {[%clk 0:00:50.7]} 20. Nfe5 {[%clk 0:01:06.3]}
20... Nxe5 {[%clk 0:00:43.7]} 21. Bxe5 {[%clk 0:01:07.2]} 21... Nxf2 {[%clk
0:00:16.6]} 22. Bxf6 {[%clk 0:01:02.4]} 22... Nxd1 {[%clk 0:00:16.3]} 23. Bd4
{[%clk 0:00:39.8]} 23... Bxd4 {[%clk 0:00:14.1]} 24. exd4 {[%clk 0:00:40.7]}
24... Bxd3 {[%clk 0:00:13.4]} 25. Rexd1 {[%clk 0:00:40.9]} 25... Bf5 {[%clk
0:00:12.3]} 26. Rc7 {[%clk 0:00:40.7]} 26... Rfc8 {[%clk 0:00:10.1]} 27. Rdc1
{[%clk 0:00:40.1]} 27... Rxc7 {[%clk 0:00:10.4]} 28. Rxc7 {[%clk 0:00:41]} 28...
b5 {[%clk 0:00:10.4]} 29. Rb7 {[%clk 0:00:31.6]} 29... Bb1 {[%clk 0:00:10.4]}
30. Rxb5 {[%clk 0:00:22.6]} 30... Bxa2 {[%clk 0:00:09.9]} 0-1

[Event "Late-Titled-Tuesday-Blitz-March-12-2024"]
[Site "Chess.com"]
[Date "2024.03.12"]
[Round "4"]
[White "rezamahdavi2008"]
[Black "NMJeevanK"]
[Result "0-1"]
[WhiteElo "2847"]
[BlackElo "2623"]
[TimeControl "180+1"]
[EndTime "14:37:17 PDT"]
[Termination "NMJeevanK won by resignation"]

1. e4 {[%clk 0:02:14.6]} 1... e5 {[%clk 0:02:59]} 2. Nf3 {[%clk 0:02:10.7]} 2...
d6 {[%clk 0:02:59.4]} 3. d4 {[%clk 0:02:10.5]} 3... exd4 {[%clk 0:03:00.3]} 4.
Nxd4 {[%clk 0:02:11.2]} 4... Nf6 {[%clk 0:03:01]} 5. Nc3 {[%clk 0:02:12]} 5...
Be7 {[%clk 0:03:01.4]} 6. Bf4 {[%clk 0:02:12.5]} 6... O-O {[%clk 0:02:58]} 7.
Qd2 {[%clk 0:02:12.7]} 7... Nc6 {[%clk 0:02:51.2]} 8. O-O-O {[%clk 0:02:12.9]}
8... Nxd4 {[%clk 0:02:49.6]} 9. Qxd4 {[%clk 0:02:13.8]} 9... a6 {[%clk
0:02:46.7]} 10. f3 {[%clk 0:02:14.1]} 10... b5 {[%clk 0:02:44.6]} 11. g4 {[%clk
0:02:14.6]} 11... c5 {[%clk 0:02:33.7]} 12. Qd2 {[%clk 0:02:14.7]} 12... Be6
{[%clk 0:02:19.4]} 13. Kb1 {[%clk 0:02:08.7]} 13... b4 {[%clk 0:02:12.6]} 14.
Nd5 {[%clk 0:02:08.4]} 14... Nxd5 {[%clk 0:02:11.2]} 15. exd5 {[%clk 0:02:09.3]}
15... Bd7 {[%clk 0:02:11.3]} 16. h4 {[%clk 0:02:07.9]} 16... Bb5 {[%clk
0:02:08.7]} 17. h5 {[%clk 0:02:06.9]} 17... c4 {[%clk 0:02:04.6]} 18. g5 {[%clk
0:02:03.9]} 18... c3 {[%clk 0:02:02.2]} 19. Qg2 {[%clk 0:01:56.8]} 19... cxb2
{[%clk 0:01:57.7]} 20. Qg4 {[%clk 0:01:51.7]} 20... Bd7 {[%clk 0:01:51.4]} 21.
Qg3 {[%clk 0:01:50.6]} 21... Bf5 {[%clk 0:01:51.7]} 22. g6 {[%clk 0:01:41.7]}
22... fxg6 {[%clk 0:01:43]} 23. hxg6 {[%clk 0:01:42.6]} 23... Bxg6 {[%clk
0:01:33.3]} 24. Bh3 {[%clk 0:01:42.2]} 24... Rc8 {[%clk 0:01:13.4]} 25. Be6+
{[%clk 0:01:41]} 25... Rf7 {[%clk 0:01:09]} 26. Rh2 {[%clk 0:01:37.8]} 26... b3
{[%clk 0:01:03.7]} 27. Qxg6 {[%clk 0:00:05]} 27... hxg6 {[%clk 0:00:49]} 28.
cxb3 {[%clk 0:00:04.5]} 28... Bg5 {[%clk 0:00:35.8]} 29. Rdh1 {[%clk 0:00:03.9]}
29... Rc1+ {[%clk 0:00:25.7]} 30. Kxb2 {[%clk 0:00:03.1]} 0-1

[Event "Late-Titled-Tuesday-Blitz-March-12-2024"]
[Site "Chess.com"]
[Date "2024.03.12"]
[Round "4"]
[White "ValeriyGrinev"]
[Black "Kosak12"]
[Result "1-0"]
[WhiteElo "2594"]
[BlackElo "2782"]
[TimeControl "180+1"]
[EndTime "14:37:18 PDT"]
[Termination "ValeriyGrinev won by resignation"]

1. d4 {[%clk 0:03:00.9]} 1... d5 {[%clk 0:02:57.5]} 2. c4 {[%clk 0:03:01.5]}
2... e5 {[%clk 0:02:57.7]} 3. dxe5 {[%clk 0:03:01.3]} 3... d4 {[%clk 0:02:57.8]}
4. a3 {[%clk 0:03:01.7]} 4... Nc6 {[%clk 0:02:57.7]} 5. e3 {[%clk 0:03:01.9]}
5... dxe3 {[%clk 0:02:48.8]} 6. Qxd8+ {[%clk 0:03:01.4]} 6... Kxd8 {[%clk
0:02:49.7]} 7. Bxe3 {[%clk 0:03:01.5]} 7... Nxe5 {[%clk 0:02:50]} 8. Nc3 {[%clk
0:02:59.7]} 8... Be6 {[%clk 0:02:49.4]} 9. O-O-O+ {[%clk 0:02:58.6]} 9... Kc8
{[%clk 0:02:48.5]} 10. Nd5 {[%clk 0:02:46.5]} 10... c6 {[%clk 0:02:44.1]} 11.
Bd4 {[%clk 0:02:44.6]} 11... Nxc4 {[%clk 0:02:24.4]} 12. Nf4 {[%clk 0:02:33.9]}
12... Nd6 {[%clk 0:02:02.1]} 13. Nxe6 {[%clk 0:02:33.8]} 13... fxe6 {[%clk
0:02:02.3]} 14. Bxg7 {[%clk 0:02:31.7]} 14... Bxg7 {[%clk 0:01:59.8]} 15. Rxd6
{[%clk 0:02:32.2]} 15... Ne7 {[%clk 0:01:52.7]} 16. Bc4 {[%clk 0:02:26.7]} 16...
Kc7 {[%clk 0:01:47.7]} 17. Rxe6 {[%clk 0:02:25.9]} 17... Rae8 {[%clk 0:01:43.3]}
18. Nf3 {[%clk 0:02:23.2]} 18... Nf5 {[%clk 0:01:41.8]} 19. Rhe1 {[%clk
0:02:20]} 19... Rd8 {[%clk 0:01:21.9]} 20. g4 {[%clk 0:02:17.3]} 20... Nd4
{[%clk 0:01:20.3]} 21. Re7+ {[%clk 0:02:17.2]} 21... Rd7 {[%clk 0:01:20.4]} 22.
Rxd7+ {[%clk 0:02:16.1]} 22... Kxd7 {[%clk 0:01:21.3]} 23. Nxd4 {[%clk
0:02:05.2]} 23... Bxd4 {[%clk 0:01:17.1]} 24. f4 {[%clk 0:02:00.7]} 24... Rf8
{[%clk 0:01:16.8]} 25. f5 {[%clk 0:01:59.6]} 25... Re8 {[%clk 0:01:13]} 26. Be6+
{[%clk 0:01:26.7]} 26... Kc7 {[%clk 0:01:10.3]} 27. g5 {[%clk 0:01:26.4]} 27...
Kd6 {[%clk 0:01:00.8]} 28. Kc2 {[%clk 0:01:25.6]} 28... c5 {[%clk 0:00:56.1]}
29. b3 {[%clk 0:01:24.9]} 29... b5 {[%clk 0:00:55.6]} 30. Kd3 {[%clk 0:01:25]}
30... a6 {[%clk 0:00:52.3]} 31. Re4 {[%clk 0:01:23.4]} 31... Bb2 {[%clk
0:00:49.3]} 32. Rh4 {[%clk 0:01:21.9]} 32... Re7 {[%clk 0:00:48.1]} 33. Rh6
{[%clk 0:01:16.6]} 33... Rc7 {[%clk 0:00:26]} 34. Ke4 {[%clk 0:01:01.7]} 34...
Bxa3 {[%clk 0:00:20.6]} 35. Bc8+ {[%clk 0:00:56.5]} 35... Ke7 {[%clk 0:00:20.1]}
36. Rxh7+ {[%clk 0:00:56.2]} 36... Kd8 {[%clk 0:00:20.4]} 37. Rxc7 {[%clk
0:00:55.3]} 37... Kxc7 {[%clk 0:00:21.3]} 38. Bxa6 {[%clk 0:00:55.5]} 38... Kb6
{[%clk 0:00:21.5]} 39. Bc8 {[%clk 0:00:55.6]} 39... c4 {[%clk 0:00:21.2]} 40.
bxc4 {[%clk 0:00:55.7]} 40... bxc4 {[%clk 0:00:22.1]} 41. Be6 {[%clk 0:00:54.6]}
41... c3 {[%clk 0:00:21.9]} 42. Bb3 {[%clk 0:00:54.2]} 42... Kc7 {[%clk
0:00:20]} 43. f6 {[%clk 0:00:54.2]} 43... Bc1 {[%clk 0:00:10]} 44. g6 {[%clk
0:00:50.7]} 1-0

[Event "Late-Titled-Tuesday-Blitz-March-12-2024"]
[Site "Chess.com"]
[Date "2024.03.12"]
[Round "4"]
[White "carloseduar100"]
[Black "maximnovik"]
[Result "0-1"]
[WhiteElo "2317"]
[BlackElo "2594"]
[TimeControl "180+1"]
[EndTime "14:37:21 PDT"]
[Termination "maximnovik won by resignation"]

1. e4 {[%clk 0:02:57.8]} 1... c6 {[%clk 0:02:59.6]} 2. Nf3 {[%clk 0:02:48.4]}
2... d5 {[%clk 0:03:00.5]} 3. Nc3 {[%clk 0:02:49.3]} 3... Bg4 {[%clk 0:02:59.7]}
4. d4 {[%clk 0:02:49.1]} 4... e6 {[%clk 0:02:58.1]} 5. exd5 {[%clk 0:02:49]}
5... cxd5 {[%clk 0:02:57.2]} 6. Be2 {[%clk 0:02:49.9]} 6... Nf6 {[%clk
0:02:56.6]} 7. Bg5 {[%clk 0:02:49.9]} 7... Nc6 {[%clk 0:02:56.4]} 8. Qd2 {[%clk
0:02:49.7]} 8... Be7 {[%clk 0:02:55.6]} 9. a3 {[%clk 0:02:49.8]} 9... Bxf3
{[%clk 0:02:23.5]} 10. Bxf3 {[%clk 0:02:49.5]} 10... Qb6 {[%clk 0:02:24.2]} 11.
O-O {[%clk 0:02:46.7]} 11... Qxd4 {[%clk 0:02:18.2]} 12. Nb5 {[%clk 0:02:34.9]}
12... Qxd2 {[%clk 0:02:14.3]} 13. Bxd2 {[%clk 0:02:33.9]} 13... O-O-O {[%clk
0:02:11.7]} 14. Rfe1 {[%clk 0:02:21.3]} 14... a6 {[%clk 0:02:11.1]} 15. Nc3
{[%clk 0:02:21.3]} 15... Nd4 {[%clk 0:02:07]} 16. Bd1 {[%clk 0:02:20.2]} 16...
Kb8 {[%clk 0:01:58.8]} 17. Be3 {[%clk 0:02:20.3]} 17... Nf5 {[%clk 0:01:57.5]}
18. Bf4+ {[%clk 0:02:20.1]} 18... Bd6 {[%clk 0:01:55.6]} 19. Bxd6+ {[%clk
0:02:19.9]} 19... Nxd6 {[%clk 0:01:55.1]} 20. Be2 {[%clk 0:02:17.4]} 20... Rc8
{[%clk 0:01:55]} 21. Rad1 {[%clk 0:02:17]} 21... Nc4 {[%clk 0:01:53.4]} 22. Bxc4
{[%clk 0:02:00.3]} 22... Rxc4 {[%clk 0:01:53.1]} 23. f3 {[%clk 0:02:00.4]} 23...
Rhc8 {[%clk 0:01:52.6]} 24. Rd2 {[%clk 0:01:31.5]} 24... d4 {[%clk 0:01:33.9]}
25. Ne4 {[%clk 0:01:17.3]} 25... Rxc2 {[%clk 0:01:33.7]} 26. Rxd4 {[%clk
0:01:15.7]} 26... Nxe4 {[%clk 0:01:28]} 27. Rdxe4 {[%clk 0:01:10.8]} 27... Rxb2
{[%clk 0:01:28]} 28. Rg4 {[%clk 0:01:10.9]} 28... g6 {[%clk 0:01:27.1]} 29. Rd1
{[%clk 0:01:11.3]} 29... h5 {[%clk 0:01:24]} 30. Rf4 {[%clk 0:01:09.9]} 30... f5
{[%clk 0:01:21.9]} 31. Rb4 {[%clk 0:00:55.8]} 31... Rxb4 {[%clk 0:01:20.3]} 32.
axb4 {[%clk 0:00:56.7]} 32... Rc4 {[%clk 0:01:19.4]} 33. Rd6 {[%clk 0:00:57.2]}
33... Rc6 {[%clk 0:01:15.4]} 34. Rd8+ {[%clk 0:00:55.7]} 34... Kc7 {[%clk
0:01:15.4]} 35. Rg8 {[%clk 0:00:55.7]} 35... e5 {[%clk 0:01:15.1]} 36. h4 {[%clk
0:00:55.9]} 36... Kb6 {[%clk 0:01:12]} 37. Rg7 {[%clk 0:00:53.8]} 37... Rd6
{[%clk 0:01:08.9]} 38. Kf2 {[%clk 0:00:53.4]} 38... Kc6 {[%clk 0:01:08.4]} 39.
g4 {[%clk 0:00:45.7]} 39... hxg4 {[%clk 0:01:06.2]} 40. fxg4 {[%clk 0:00:46.6]}
40... fxg4 {[%clk 0:01:06.2]} 41. Kg3 {[%clk 0:00:47.5]} 41... b6 {[%clk
0:01:04.5]} 42. Kxg4 {[%clk 0:00:47.6]} 42... Kb5 {[%clk 0:01:04.7]} 43. Re7
{[%clk 0:00:43.9]} 43... Kxb4 {[%clk 0:01:04]} 44. Rxe5 {[%clk 0:00:44.2]} 44...
a5 {[%clk 0:01:02.9]} 45. Kg5 {[%clk 0:00:41.3]} 45... a4 {[%clk 0:01:01.1]} 46.
Re4+ {[%clk 0:00:41.6]} 46... Ka5 {[%clk 0:01:00.5]} 47. Re5+ {[%clk 0:00:31.9]}
47... b5 {[%clk 0:01:00.4]} 48. Re4 {[%clk 0:00:32.4]} 48... a3 {[%clk
0:01:00.2]} 49. Re8 {[%clk 0:00:32.1]} 49... b4 {[%clk 0:00:59]} 50. Ra8+ {[%clk
0:00:31.2]} 50... Ra6 {[%clk 0:00:57.4]} 0-1

[Event "Late-Titled-Tuesday-Blitz-March-12-2024"]
[Site "Chess.com"]
[Date "2024.03.12"]
[Round "4"]
[White "Malev212"]
[Black "trriinu"]
[Result "1-0"]
[WhiteElo "2615"]
[BlackElo "2262"]
[TimeControl "180+1"]
[EndTime "14:37:22 PDT"]
[Termination "Malev212 won on time"]

1. e4 {[%clk 0:02:54]} 1... d5 {[%clk 0:02:55.3]} 2. exd5 {[%clk 0:02:52.6]}
2... Qxd5 {[%clk 0:02:56.2]} 3. Nc3 {[%clk 0:02:27.3]} 3... Qd6 {[%clk
0:02:56.2]} 4. Nf3 {[%clk 0:02:26.4]} 4... Nf6 {[%clk 0:02:56.5]} 5. Be2 {[%clk
0:02:25.4]} 5... Nc6 {[%clk 0:02:56.1]} 6. O-O {[%clk 0:02:25]} 6... Bg4 {[%clk
0:02:55.8]} 7. d3 {[%clk 0:02:24.1]} 7... e6 {[%clk 0:02:55.8]} 8. h3 {[%clk
0:02:24.2]} 8... Bh5 {[%clk 0:02:56]} 9. Bg5 {[%clk 0:02:21.4]} 9... O-O-O
{[%clk 0:02:53.5]} 10. b4 {[%clk 0:02:11]} 10... h6 {[%clk 0:02:48.8]} 11. Bd2
{[%clk 0:02:06.8]} 11... g5 {[%clk 0:02:16.6]} 12. b5 {[%clk 0:02:05.7]} 12...
Bxf3 {[%clk 0:02:16.6]} 13. Bxf3 {[%clk 0:01:57.4]} 13... Nd4 {[%clk 0:02:11.9]}
14. Rb1 {[%clk 0:01:50.7]} 14... g4 {[%clk 0:01:42]} 15. hxg4 {[%clk 0:01:49.2]}
15... Rg8 {[%clk 0:01:31.5]} 16. b6 {[%clk 0:01:48.9]} 16... axb6 {[%clk
0:01:26.1]} 17. Nb5 {[%clk 0:01:48.5]} 17... Nxb5 {[%clk 0:00:41.1]} 18. Rxb5
{[%clk 0:01:49.4]} 18... Nd7 {[%clk 0:00:20.8]} 19. Re1 {[%clk 0:01:41.7]} 19...
Be7 {[%clk 0:00:02.9]} 20. a4 {[%clk 0:01:39.7]} 20... Bh4 {[%clk 0:00:02.3]}
21. Qe2 {[%clk 0:01:30]} 21... c6 {[%clk 0:00:01.9]} 22. Rb4 {[%clk 0:01:05.7]}
22... Rg6 {[%clk 0:00:02.2]} 23. Reb1 {[%clk 0:00:53.7]} 23... Rdg8 {[%clk
0:00:02.4]} 24. Be3 {[%clk 0:00:49.4]} 24... c5 {[%clk 0:00:02.2]} 25. Rxb6
{[%clk 0:00:36.2]} 25... Nxb6 {[%clk 0:00:02.2]} 26. Bxb7+ {[%clk 0:00:36.6]}
26... Kd7 {[%clk 0:00:01.6]} 27. Qf3 {[%clk 0:00:34]} 27... Nd5 {[%clk
0:00:01.2]} 28. Bxd5 {[%clk 0:00:32.2]} 28... exd5 {[%clk 0:00:01.2]} 29. Qxf7+
{[%clk 0:00:31.2]} 29... Be7 {[%clk 0:00:01.3]} 30. Rb7+ {[%clk 0:00:27.4]}
30... Kd8 {[%clk 0:00:01.7]} 31. Bf4 {[%clk 0:00:24.4]} 1-0